bitfinex/quotes_SOLUSD_20250920
["timestamp","ask_amount","ask_price","bid_price","bid_amount"]
[1758346502232,34.01443232,239.66,239.64,37.93285446]
[1758346502439,1.25032407,239.68,239.65,0.68]
[1758346502645,4.06356535,239.68,239.66,33.06]
[1758346503641,2.81324128,239.67,239.66,33.06]
[1758346505628,4.06356535,239.68,239.66,33.06]
[1758346505827,4.72356535,239.68,239.66,33.06]
[1758346506139,4.72356535,239.68,239.66,37.2325649]
[1758346506332,4.06356535,239.68,239.66,37.2325649]
[1758346507646,1.25032407,239.68,239.66,37.2325649]
[1758346507949,4.06356535,239.68,239.66,37.2325649]
[1758346508346,1.25032407,239.68,239.66,37.2325649]
[1758346508545,4.06356535,239.68,239.66,37.2325649]
[1758346509355,1.25032407,239.68,239.66,37.2325649]
[1758346509533,4.06356535,239.68,239.66,37.2325649]
[1758346510057,4.06356535,239.68,239.66,37.9125649]
[1758346510354,1.25032407,239.68,239.66,37.9125649]
[1758346510652,2.81324128,239.68,239.67,0.68]
[1758346510852,32.45032407,239.69,239.66,37.2325649]
[1758346511048,34.01324128,239.68,239.66,37.2325649]
[1758346511253,31.2,239.68,239.66,37.2325649]
[1758346511440,32.45032407,239.69,239.66,37.9125649]
[1758346511639,2.8082043,239.68,239.66,37.9125649]
[1758346513755,2.8082043,239.68,239.67,0.68]
[1758346513948,1.9522654,239.69,239.67,0.68]
[1758346514149,1.9522654,239.69,239.68,33.04]
[1758346515142,2.6122654,239.69,239.68,33.04]
[1758346515343,33.8122654,239.69,239.68,33.04]
[1758346515542,36.6204697,239.69,239.68,33.04]
[1758346518557,35.9604697,239.69,239.68,33.04]
[1758346521974,34.0082043,239.69,239.68,33.04]
[1758346522166,35.9604697,239.69,239.68,33.04]
[1758346523369,31.2,239.68,239.67,4.1723574]
[1758346523571,2.8082043,239.68,239.67,37.1323574]
[1758346523746,31.2,239.69,239.67,37.8123574]
[1758346524048,2.8082043,239.68,239.67,37.8123574]
[1758346528658,2.8082043,239.69,239.67,37.8123574]
[1758346528848,2.8082043,239.69,239.68,0.71]
[1758346529672,2.8082043,239.69,239.67,37.1323574]
[1758346529860,2.8082043,239.69,239.67,37.8423574]
[1758346530657,2.8082043,239.69,239.68,0.71]
[1758346530955,1.9522654,239.71,239.68,0.71]
[1758346531154,4.7604697,239.71,239.69,32.88]
[1758346531454,5.4704697,239.71,239.69,32.88]
[1758346532569,12.54364142,239.7,239.69,32.88]
[1758346532768,15.35184572,239.7,239.69,32.88]
[1758346533750,17.30411112,239.7,239.69,32.86]
[1758346536575,15.35184572,239.7,239.69,32.86]
[1758346540086,15.35184572,239.7,239.68,4.17207793]
[1758346540293,12.54364142,239.7,239.69,32.8]
[1758346540462,15.35803285,239.7,239.69,32.8]
[1758346540784,15.35803285,239.7,239.69,36.97205557]
[1758346541582,15.35803285,239.7,239.69,4.17205557]
[1758346541780,15.35803285,239.7,239.69,36.95205557]
[1758346541981,15.35803285,239.7,239.68,4.17222963]
[1758346542181,2.81439143,239.69,239.68,4.17222963]
[1758346542360,2.81439143,239.69,239.68,36.93222963]
[1758346543173,2.81439143,239.69,239.68,4.17222963]
[1758346543372,2.81439143,239.69,239.68,32.76]
[1758346544175,2.81439143,239.69,239.68,36.93222963]
[1758346545284,2.81439143,239.69,239.68,4.17222963]
[1758346545484,2.81439143,239.69,239.68,36.93222963]
[1758346545691,2.81439143,239.69,239.68,36.91222963]
[1758346546179,2.81439143,239.69,239.68,4.88222963]
[1758346546383,2.81439143,239.69,239.68,37.62222963]
[1758346546884,2.81439143,239.69,239.68,37.60222963]
[1758346548896,2.81439143,239.69,239.68,37.58222963]
[1758346549099,2.81439143,239.69,239.68,4.88222963]
[1758346549398,2.81439143,239.69,239.68,37.58222963]
[1758346551198,2.81439143,239.69,239.68,4.88222963]
[1758346551397,2.81439143,239.69,239.68,37.56222963]
[1758346552092,2.81439143,239.69,239.68,4.88222963]
[1758346552279,2.81439143,239.69,239.68,37.56222963]
[1758346552598,2.81439143,239.69,239.68,36.85222963]
[1758346553002,2.81439143,239.69,239.68,4.17222963]
[1758346553171,2.81439143,239.69,239.68,36.83222963]
[1758346554107,2.81439143,239.69,239.68,32.66]
[1758346554774,2.81439143,239.69,239.67,4.17240372]
[1758346554981,2.81439143,239.68,239.67,0.71]
[1758346555201,2.81439143,239.68,239.67,33.35]
[1758346556101,2.81439143,239.68,239.67,37.52240372]
[1758346557519,2.81439143,239.68,239.67,4.88240372]
[1758346557807,2.81439143,239.68,239.67,37.50240372]
[1758346558498,2.81439143,239.68,239.67,4.88240372]
[1758346558701,2.81439143,239.68,239.67,37.50240372]
[1758346559009,2.81439143,239.68,239.67,4.88240372]
[1758346559311,2.81439143,239.68,239.67,37.50240372]
[1758346560699,2.81439143,239.7,239.67,37.50240372]
[1758346560907,2.81439143,239.69,239.68,32.62]
[1758346561406,2.81439143,239.69,239.64,4.17292605]
[1758346561597,2.81439143,239.68,239.65,46.86559401]
[1758346561793,2.81439143,239.67,239.65,46.86559401]
[1758346561981,2.81439143,239.69,239.65,46.86559401]
[1758346562187,2.81439143,239.68,239.65,46.86559401]
[1758346562404,3.49439143,239.67,239.66,32.58]
[1758346562608,0.68,239.67,239.65,13.59559401]
[1758346562782,0.68,239.67,239.66,32.58]
[1758346563281,3.49652817,239.67,239.66,32.58]
[1758346563781,0.68,239.67,239.66,36.75257781]
[1758346564002,2.81652817,239.67,239.66,36.75257781]
[1758346565604,2.81652817,239.67,239.66,4.17257781]
[1758346565798,2.81652817,239.67,239.66,36.73257781]
[1758346566582,2.81652817,239.67,239.66,4.17257781]
[1758346566784,2.81652817,239.67,239.66,36.73257781]
[1758346571704,4.76879357,239.67,239.66,36.73257781]
[1758346572008,4.06599598,239.67,239.66,36.73257781]
[1758346574810,4.06746535,239.67,239.66,36.73257781]
[1758346578316,4.06746535,239.67,239.66,37.40257781]
[1758346578516,2.81799754,239.67,239.66,37.40257781]
[1758346587406,2.81799754,239.67,239.66,50.99817182]
[1758346588938,2.81799754,239.67,239.66,50.32817182]
[1758346591330,2.81799754,239.67,239.66,50.14817182]
[1758346591736,3.47799754,239.67,239.66,50.14817182]
[1758346592627,3.47799754,239.67,239.66,17.76817182]
[1758346592818,4.72746535,239.67,239.66,32.38]
[1758346593010,4.72746535,239.67,239.64,13.59559401]
[1758346593337,4.72746535,239.66,239.65,45.95559401]
[1758346594137,4.72746535,239.66,239.65,50.12834593]
[1758346596737,4.06746535,239.66,239.65,17.76834593]
[1758346596937,4.06746535,239.66,239.65,50.12834593]
[1758346597937,2.81842224,239.66,239.65,50.12834593]
[1758346615260,2.81842224,239.66,239.63,4.17298364]
[1758346615261,4.06789005,239.66,239.63,4.17298364]
[1758346615458,1.24946781,239.64,239.63,4.17298364]
[1758346615642,4.72789005,239.64,239.63,36.43298364]
[1758346616662,13.27429102,239.64,239.63,36.43298364]
[1758346618540,13.27429102,239.64,239.63,32.26]
[1758346623656,12.61429102,239.64,239.63,32.26]
[1758346624359,13.30429102,239.64,239.63,32.26]
[1758346628850,0.69,239.7,239.63,50.7286942]
[1758346629171,12.54469046,239.66,239.64,0.7]
[1758346629475,12.54469046,239.66,239.65,32.2]
[1758346629653,15.35772296,239.66,239.65,32.9]
[1758346630072,15.35772296,239.66,239.65,37.07275192]
[1758346631350,12.54469046,239.66,239.65,37.07275192]
[1758346631854,12.54469046,239.66,239.65,36.37275192]
[1758346632081,15.35784933,239.66,239.65,36.37275192]
[1758346633145,17.99997274,239.66,239.65,32.2]
[1758346636466,17.30997274,239.66,239.65,32.2]
[1758346637156,15.35784933,239.66,239.65,37.07275192]
[1758346639075,2.81315887,239.66,239.65,37.07275192]
[1758346639375,15.35784933,239.67,239.65,37.07275192]
[1758346639672,2.81315887,239.66,239.65,37.07275192]
[1758346640168,12.54469046,239.66,239.65,37.07275192]
[1758346640379,15.35784933,239.66,239.65,37.07275192]
[1758346642267,15.35784933,239.66,239.65,36.37275192]
[1758346642668,15.35784933,239.66,239.65,37.07275192]
[1758346643257,2.81315887,239.66,239.65,37.07275192]
[1758346643468,15.35784933,239.66,239.65,37.07275192]
[1758346643669,15.35784933,239.66,239.65,36.37275192]
[1758346647082,17.30997274,239.66,239.65,36.37275192]
[1758346647859,4.76528228,239.66,239.65,36.37275192]
[1758346648178,14.49681387,239.66,239.65,36.37275192]
[1758346648470,2.81315887,239.66,239.65,37.05275192]
[1758346648675,14.49628933,239.67,239.65,37.05275192]
[1758346648853,2.81315887,239.66,239.65,37.05275192]
[1758346649377,2.81315887,239.67,239.65,37.05275192]
[1758346649570,2.81315887,239.66,239.65,36.37275192]
[1758346649773,2.81315887,239.67,239.65,36.37275192]
[1758346649979,2.81315887,239.67,239.66,0.68]
[1758346650566,2.81315887,239.68,239.66,0.68]
[1758346650770,1.95212341,239.69,239.67,32.88]
[1758346650966,2.81400022,239.68,239.67,32.2]
[1758346651287,2.81400022,239.68,239.67,32.88]
[1758346651288,15.35816613,239.68,239.67,32.88]
[1758346651466,15.35816613,239.68,239.67,37.05240372]
[1758346651467,2.81400022,239.68,239.67,37.05240372]
[1758346651859,2.81400022,239.68,239.67,36.37240372]
[1758346659295,2.81400022,239.72,239.67,36.37240372]
[1758346659296,2.81400022,239.71,239.68,13.59559401]
[1758346659585,5.43612363,239.73,239.69,32.88]
[1758346659782,2.81400022,239.72,239.69,32.88]
[1758346659984,2.81400022,239.72,239.7,0.68]
[1758346660167,2.81400022,239.72,239.71,32.18]
[1758346660564,2.81400022,239.72,239.71,36.35170747]
[1758346662379,2.81400022,239.73,239.71,36.35170747]
[1758346662881,0.67,239.73,239.71,36.35170747]
[1758346663267,3.48400022,239.73,239.71,36.35170747]
[1758346663469,0.67,239.73,239.71,36.35170747]
[1758346663979,3.48400022,239.73,239.71,36.35170747]
[1758346664182,0.67,239.73,239.71,36.35170747]
[1758346664379,0.67,239.73,239.71,4.17170747]
[1758346664568,3.48400022,239.73,239.72,36.35153345]
[1758346664770,0.67,239.73,239.72,36.35153345]
[1758346665390,3.48400022,239.73,239.72,36.35153345]
[1758346665687,0.67,239.73,239.72,36.35153345]
[1758346665874,3.48400022,239.75,239.72,36.35153345]
[1758346666074,3.48400022,239.74,239.72,36.35153345]
[1758346666373,3.48400022,239.73,239.72,36.35153345]
[1758346666691,2.81400022,239.75,239.72,46.78036708]
[1758346666870,2.81400022,239.74,239.72,46.78036708]
[1758346667078,3.48400022,239.74,239.72,46.78036708]
[1758346667385,0.67,239.74,239.72,46.78036708]
[1758346667970,3.48400022,239.74,239.72,46.78036708]
[1758346668185,0.67,239.74,239.72,46.78036708]
[1758346668889,3.48400022,239.74,239.72,46.78036708]
[1758346669092,0.67,239.74,239.72,46.78036708]
[1758346669386,3.48400022,239.76,239.72,46.78036708]
[1758346669584,3.48400022,239.75,239.72,46.78036708]
[1758346669886,2.81400022,239.74,239.72,46.78036708]
[1758346672194,3.48400022,239.74,239.72,46.78036708]
[1758346672386,0.67,239.74,239.72,46.78036708]
[1758346672599,3.48400022,239.76,239.72,46.78036708]
[1758346672889,3.48400022,239.75,239.72,46.78036708]
[1758346673083,2.81400022,239.74,239.72,47.46036708]
[1758346673673,2.81400022,239.74,239.73,6.80348285]
[1758346673979,3.48400022,239.77,239.73,6.12348285]
[1758346674294,3.48400022,239.76,239.74,32.18]
[1758346674496,2.81400022,239.75,239.74,32.18]
[1758346674684,2.81400022,239.75,239.74,32.86]
[1758346674873,2.81400022,239.78,239.74,32.86]
[1758346675071,2.81400022,239.77,239.74,32.86]
[1758346675274,2.81400022,239.76,239.74,32.86]
[1758346675580,2.81400022,239.75,239.74,32.86]
[1758346675897,2.81400022,239.77,239.75,4.17101147]
[1758346676085,0.67,239.78,239.76,32.18]
[1758346676396,3.47910625,239.77,239.76,32.18]
[1758346676993,2.80910625,239.77,239.76,36.3508375]
[1758346677701,2.80910625,239.78,239.76,36.3508375]
[1758346677892,2.80910625,239.77,239.76,36.3508375]
[1758346678092,2.80910625,239.78,239.76,36.3508375]
[1758346678281,3.47910625,239.77,239.76,36.3508375]
[1758346678480,0.67,239.77,239.76,36.3508375]
[1758346678680,3.47910625,239.77,239.76,36.3508375]
[1758346678902,0.67,239.77,239.76,36.3508375]
[1758346679085,3.47910625,239.77,239.76,36.3508375]
[1758346679291,0.67,239.77,239.76,36.3508375]
[1758346679482,3.47910625,239.77,239.76,36.3508375]
[1758346679803,0.67,239.77,239.76,36.3508375]
[1758346680007,3.47910625,239.77,239.76,36.3508375]
[1758346680197,2.80910625,239.78,239.76,36.3508375]
[1758346680505,2.80910625,239.77,239.76,36.3508375]
[1758346680711,2.80910625,239.78,239.76,36.3508375]
[1758346681006,0.91,239.79,239.76,36.3508375]
[1758346681007,2.80910625,239.77,239.76,36.3508375]
[1758346681200,2.80910625,239.78,239.76,36.3508375]
[1758346681513,2.80910625,239.77,239.76,36.3508375]
[1758346681690,2.80910625,239.78,239.76,37.0708375]
[1758346681890,2.80910625,239.77,239.76,36.3508375]
[1758346682121,2.80910625,239.78,239.76,36.3508375]
[1758346682414,2.80910625,239.77,239.76,4.8908375]
[1758346682631,2.80910625,239.78,239.76,4.8908375]
[1758346682910,0.2,239.79,239.77,0.72]
[1758346683117,2.80833146,239.78,239.77,0.72]
[1758346683413,2.80833146,239.78,239.77,32.88]
[1758346683785,2.80833146,239.78,239.77,37.05066355]
[1758346684213,2.80833146,239.78,239.77,36.33066355]
[1758346684385,2.80833146,239.78,239.77,4.17066355]
[1758346684583,2.80833146,239.78,239.77,36.33066355]
[1758346686019,2.80833146,239.78,239.77,37.05066355]
[1758346686496,2.80833146,239.78,239.77,4.89066355]
[1758346686814,2.80833146,239.78,239.77,36.33066355]
[1758346688498,3.51833146,239.78,239.77,36.33066355]
[1758346688688,2.80833146,239.78,239.77,36.33066355]
[1758346689533,2.80833146,239.78,239.76,4.1708375]
[1758346689708,2.80833146,239.77,239.76,4.1708375]
[1758346689908,3.51833146,239.78,239.76,36.3308375]
[1758346690229,2.80833146,239.78,239.76,36.3308375]
[1758346690524,2.80833146,239.77,239.76,36.3308375]
[1758346690728,2.80833146,239.78,239.75,17.76660548]
[1758346690931,2.80833146,239.77,239.76,32.16]
[1758346691132,2.80833146,239.78,239.76,32.16]
[1758346691335,2.80833146,239.77,239.76,32.16]
[1758346691533,2.80833146,239.78,239.76,32.16]
[1758346691718,2.80833146,239.77,239.76,32.16]
[1758346691913,2.80833146,239.78,239.77,4.17066355]
[1758346692400,3.51833146,239.78,239.76,32.16]
[1758346692604,2.80833146,239.77,239.75,17.76660548]
[1758346692831,2.80833146,239.77,239.76,32.16]
[1758346694034,2.80833146,239.77,239.76,4.1708375]
[1758346694204,2.80833146,239.77,239.76,36.3308375]
[1758346695736,3.51833146,239.77,239.76,32.16]
[1758346696435,8.93729187,239.77,239.76,32.16]
[1758346697406,4.76662832,239.77,239.76,32.16]
[1758346697610,35.96662832,239.77,239.76,32.16]
[1758346698219,35.96662832,239.77,239.73,4.17126868]
[1758346698415,2.80833146,239.76,239.74,32.16]
[1758346698619,2.80833146,239.75,239.74,45.75559401]
[1758346698838,2.80833146,239.78,239.74,45.75559401]
[1758346699048,34.00833146,239.77,239.75,0.72]
[1758346699220,2.80833146,239.76,239.75,0.72]
[1758346699416,2.80833146,239.76,239.75,32.88]
[1758346699829,2.80833146,239.76,239.75,37.05101147]
[1758346700222,2.80833146,239.76,239.75,36.33101147]
[1758346701448,2.80833146,239.76,239.75,37.05101147]
[1758346701648,2.80833146,239.76,239.75,50.64660548]
[1758346706644,2.80833146,239.76,239.75,63.29858812]
[1758346712733,2.80833146,239.76,239.75,64.54688498]
[1758346717741,2.80833146,239.76,239.75,64.83120812]
[1758346718161,0.2,239.79,239.76,13.59559401]
[1758346718338,0.2,239.79,239.78,15.12821401]
[1758346718738,0.2,239.79,239.78,15.83821401]
[1758346719246,0.2,239.79,239.78,20.00870362]
[1758346721942,0.1,239.81,239.78,82.40870362]
[1758346722157,0.1,239.81,239.8,15.12821401]
[1758346722355,0.1,239.81,239.8,47.24821401]
[1758346722560,0.1,239.81,239.8,47.95821401]
[1758346724052,0.1,239.81,239.8,52.12835579]
[1758346729254,0.1,239.81,239.8,51.41835579]
[1758346731074,0.1,239.81,239.8,19.29835579]
[1758346731254,0.1,239.81,239.8,51.41835579]
[1758346731569,0.81,239.81,239.8,15.12821401]
[1758346731865,0.81,239.81,239.8,51.41835579]
[1758346732261,0.81,239.81,239.8,46.96389087]
[1758346733964,0.1,239.81,239.8,51.13403265]
[1758346736374,0.81,239.81,239.8,51.13403265]
[1758346738277,0.1,239.81,239.8,51.13403265]
[1758346738983,0.1,239.81,239.8,51.41835579]
[1758346740585,0.1,239.81,239.8,50.17005893]
[1758346740761,0.1,239.81,239.8,51.41835579]
[1758346742276,0.1,239.81,239.8,50.17005893]
[1758346743278,0.1,239.81,239.8,51.41835579]
[1758346743476,0.76,239.81,239.8,51.41835579]
[1758346743789,0.76,239.81,239.77,13.59559401]
[1758346743966,0.66,239.8,239.78,32.1]
[1758346744169,0.66,239.79,239.76,13.59559401]
[1758346744374,0.66,239.78,239.77,32.1]
[1758346750394,31.86,239.78,239.72,13.59559401]
[1758346750598,0.66,239.77,239.73,32.1]
[1758346750889,0.66,239.76,239.73,32.1]
[1758346751087,0.66,239.75,239.71,7.5983754]
[1758346751289,0.66,239.74,239.72,32.1]
[1758346751592,0.66,239.73,239.72,32.1]
[1758346755294,0.66,239.75,239.72,36.27150147]
[1758346756990,0.66,239.75,239.72,4.17150147]
[1758346757189,0.66,239.75,239.73,32.1]
[1758346757398,0.66,239.74,239.73,32.1]
[1758346757713,33.81091003,239.74,239.66,66.57242763]
[1758346757901,1.95091003,239.7,239.67,45.69559401]
[1758346758271,2.61091003,239.71,239.68,32.1]
[1758346758492,0.66,239.7,239.67,13.59559401]
[1758346758689,31.2,239.74,239.67,13.59559401]
[1758346758690,1.95091003,239.72,239.68,32.78]
[1758346758910,2.61091003,239.72,239.69,32.1]
[1758346759086,2.61091003,239.72,239.68,0.68]
[1758346759281,2.61091003,239.72,239.69,32.1]
[1758346759484,0.66,239.71,239.69,32.1]
[1758346760997,2.61091003,239.7,239.69,32.1]
[1758346763379,37.98279154,239.7,239.69,32.1]
[1758346763578,36.03188151,239.7,239.66,2.17985182]
[1758346763803,1.95091003,239.67,239.66,2.17985182]
[1758346764103,2.61091003,239.67,239.66,32.1]
[1758346765702,2.61091003,239.67,239.62,2.18025499]
[1758346765703,36.03240372,239.67,239.62,2.18025499]
[1758346766003,31.9,239.66,239.62,32.1]
[1758346766205,1.95091003,239.63,239.62,32.1]
[1758346766501,2.65091003,239.63,239.62,32.1]
[1758346767285,0.7,239.63,239.62,32.1]
[1758346767482,2.65091003,239.63,239.62,32.1]
[1758346768090,6.82401022,239.63,239.62,32.1]
[1758346768303,2.65091003,239.63,239.62,32.1]
[1758346771908,6.82401022,239.63,239.62,32.1]
[1758346772206,6.82401022,239.63,239.61,0.1]
[1758346772519,1.95091003,239.62,239.61,0.1]
[1758346773013,38.02418438,239.62,239.61,0.1]
[1758346776111,6.82418438,239.62,239.61,0.1]
[1758346776412,19.37569789,239.62,239.61,0.1]
[1758346781019,50.57569789,239.62,239.61,0.1]
[1758346781527,19.37569789,239.62,239.61,0.1]
[1758346782822,14.50242354,239.62,239.61,0.1]
[1758346783123,33.85091003,239.62,239.61,0.1]
[1758346783421,2.65091003,239.62,239.61,0.1]
[1758346784504,5.846499,239.63,239.61,0.1]
[1758346784706,2.65091003,239.62,239.61,0.1]
[1758346788028,6.82418438,239.62,239.61,0.1]
[1758346788526,2.65091003,239.62,239.61,0.1]
[1758346796334,1.95091003,239.62,239.61,0.1]
[1758346798232,4.74850576,239.62,239.61,0.1]
[1758346799233,9.59178011,239.62,239.61,0.1]
[1758346801719,13.7660647,239.62,239.61,0.1]
[1758346811119,17.2890925,239.62,239.61,0.1]
[1758346811639,31.2,239.59,239.55,0.2]
[1758346811824,33.99759573,239.58,239.55,0.2]
[1758346812034,1.95091003,239.56,239.55,0.2]
[1758346812347,4.74850576,239.56,239.55,0.2]
[1758346812537,1.95091003,239.56,239.55,0.2]
[1758346812754,4.74850576,239.56,239.55,0.2]
[1758346813047,1.95091003,239.56,239.55,0.2]
[1758346813342,4.74850576,239.56,239.55,0.91]
[1758346813946,4.74850576,239.56,239.55,5.08449384]
[1758346814145,2.79759573,239.56,239.55,5.08449384]
[1758346818837,2.79759573,239.56,239.55,0.91]
[1758346822538,35.9082322,239.56,239.55,0.2]
[1758346822932,40.08274396,239.56,239.55,0.2]
[1758346823740,44.25706354,239.56,239.55,0.2]
[1758346823935,47.77494433,239.56,239.55,0.2]
[1758346824149,76.37706354,239.56,239.55,0.2]
[1758346824355,79.89736543,239.56,239.55,0.2]
[1758346829657,74.46642707,239.56,239.55,0.2]
[1758346829838,43.59706354,239.56,239.55,0.2]
[1758346831464,35.2482322,239.56,239.55,0.85]
[1758346831767,36.92204745,239.56,239.55,0.85]
[1758346831947,36.92204745,239.56,239.55,0.2]
[1758346833250,41.80636703,239.56,239.55,0.2]
[1758346835049,41.09636703,239.56,239.55,0.2]
[1758346835445,41.09636703,239.56,239.55,0.85]
[1758346835967,41.09636703,239.56,239.55,0.2]
[1758346836772,41.80636703,239.56,239.55,0.2]
[1758346838066,41.09636703,239.56,239.55,0.2]
[1758346838670,41.80636703,239.56,239.55,0.2]
[1758346842157,82.4492148,239.56,239.55,0.2]
[1758346842762,89.36471187,239.56,239.51,0.1]
[1758346842966,32.45063647,239.52,239.51,0.1]
[1758346843169,35.2482322,239.52,239.51,0.1]
[1758346843368,41.8072743,239.52,239.51,0.1]
[1758346844779,41.0972743,239.52,239.51,0.1]
[1758346845574,39.84663783,239.52,239.51,0.75]
[1758346845767,41.0972743,239.52,239.51,0.1]
[1758346852288,41.8072743,239.52,239.51,0.1]
[1758346852584,41.0972743,239.52,239.51,0.1]
[1758346853681,41.8072743,239.52,239.51,0.1]
[1758346855280,41.0972743,239.52,239.51,0.1]
[1758346857973,41.8172743,239.52,239.51,0.1]
[1758346865090,41.0972743,239.52,239.51,0.1]
[1758346866405,41.8172743,239.52,239.51,0.1]
[1758346870581,41.0972743,239.52,239.51,0.1]
[1758346874282,41.8172743,239.52,239.51,0.1]
[1758346874485,45.3342016,239.52,239.51,0.1]
[1758346874680,52.25481605,239.52,239.47,0.2]
[1758346874899,32.45063647,239.48,239.47,0.2]
[1758346875210,35.2482322,239.48,239.47,0.2]
[1758346875390,36.92253789,239.48,239.47,0.2]
[1758346875917,41.80366573,239.48,239.47,0.2]
[1758346878413,42.52366573,239.48,239.47,0.2]
[1758346878612,40.84936004,239.48,239.47,0.2]
[1758346879300,40.12936004,239.48,239.47,0.2]
[1758346881711,40.84936004,239.48,239.47,0.2]
[1758346882094,42.52373581,239.48,239.47,0.2]
[1758346882506,78.14606292,239.48,239.47,0.2]
[1758346884707,46.04606292,239.48,239.47,0.2]
[1758346884907,78.14606292,239.48,239.47,0.2]
[1758346885316,74.62373581,239.48,239.47,0.2]
[1758346890015,78.14606292,239.48,239.47,0.2]
[1758346891923,46.04606292,239.48,239.47,0.2]
[1758346892118,78.12606292,239.48,239.47,0.2]
[1758346892425,37.62802177,239.48,239.47,0.91]
[1758346892617,41.80373581,239.48,239.47,0.91]
[1758346892801,41.80373581,239.48,239.47,0.2]
[1758346895196,41.80373581,239.48,239.47,0.91]
[1758346897016,35.6719715,239.48,239.47,0.91]
[1758346897211,37.62802177,239.48,239.47,0.91]
[1758346897394,6.42802177,239.48,239.47,0.91]
[1758346900520,6.42802177,239.48,239.47,0.2]
[1758346905126,4.4719715,239.48,239.47,0.91]
[1758346905331,2.79759573,239.51,239.47,0.91]
[1758346905531,2.79759573,239.5,239.48,0.71]
[1758346905706,33.99759573,239.49,239.48,0.71]
[1758346907121,35.953646,239.49,239.48,0.71]
[1758346909529,31.2,239.48,239.47,0.2]
[1758346909716,35.953646,239.48,239.47,0.2]
[1758346910228,35.953646,239.48,239.47,0.91]
[1758346910698,35.953646,239.48,239.47,0.2]
[1758346910899,36.623646,239.48,239.47,0.2]
[1758346911121,38.29781153,239.48,239.47,0.2]
[1758346911515,42.47352557,239.48,239.47,0.2]
[1758346912928,41.80352557,239.48,239.47,0.2]
[1758346913109,37.62781153,239.48,239.47,0.2]
[1758346913306,37.62781153,239.48,239.47,0.91]
[1758346913621,35.67176126,239.48,239.47,0.2]
[1758346913807,37.62781153,239.48,239.47,0.2]
[1758346915723,35.67176126,239.48,239.47,0.2]
[1758346915903,37.62781153,239.48,239.47,0.2]
[1758346919532,38.31781153,239.48,239.47,0.2]
[1758346919929,42.49352557,239.48,239.47,0.2]
[1758346923622,41.80352557,239.48,239.47,0.2]
[1758346925416,42.52352557,239.48,239.47,0.2]
[1758346932244,41.80352557,239.48,239.47,0.2]
[1758346932623,42.52352557,239.48,239.47,0.2]
[1758346937846,41.81933283,239.48,239.47,0.2]
[1758346948847,36.92361879,239.48,239.47,0.2]
[1758346949359,37.62361879,239.48,239.47,0.2]
[1758346950765,41.79933283,239.48,239.47,0.2]
[1758346959470,41.09933283,239.48,239.47,0.2]
[1758346959654,41.79933283,239.48,239.47,0.2]
[1758346966179,40.5474753,239.48,239.47,0.2]
[1758346966381,5.72361879,239.48,239.47,0.2]
[1758346966680,6.42361879,239.48,239.47,0.2]
[1758346968198,5.17176126,239.48,239.47,0.2]
[1758346968363,4.47176126,239.48,239.47,0.87]
[1758346968557,2.79759573,239.48,239.47,0.87]
[1758346968863,33.99759573,239.48,239.47,0.87]
[1758346969770,33.99759573,239.48,239.47,5.04588842]
[1758346973558,2.79759573,239.48,239.47,5.04588842]
[1758346973764,2.79759573,239.48,239.47,6.29774595]
[1758346976166,31.2,239.51,239.47,16.737467]
[1758346976365,2.81683697,239.5,239.48,0.67]
[1758346976567,2.81683697,239.49,239.48,0.67]
[1758346977799,2.81683697,239.49,239.48,4.84571404]
[1758346984483,2.81683697,239.49,239.48,19.69316558]
[1758346984680,34.01683697,239.53,239.48,30.13245069]
[1758346984884,2.81683697,239.52,239.49,1.92185753]
[1758346985192,31.2,239.53,239.49,1.92185753]
[1758346985193,2.81683697,239.51,239.5,32.69]
[1758346985780,2.81683697,239.52,239.51,4.17519101]
[1758346988402,2.81683697,239.53,239.51,4.17519101]
[1758346988604,2.81683697,239.52,239.51,4.17519101]
[1758346990394,3.53683697,239.52,239.5,32.02]
[1758346990603,0.72,239.51,239.5,32.02]
[1758346991779,3.53683697,239.53,239.5,32.02]
[1758346992100,2.81683697,239.52,239.5,36.19532176]
[1758346997913,2.81683697,239.52,239.5,36.86532176]